fUST/lending_fUST_20250206
["ID","MTS","AMOUNT","RATE_DAILY","PERIOD"]
[351928909,1738847446932,-794.74,0.00013835,2]
[351928911,1738847446943,-500.0,0.00013835,2]
[351928913,1738847446952,-500.0,0.00013835,2]
[351928915,1738847446962,-1201.17,0.00013835,2]
[351928917,1738847446971,-500.0,0.00013835,2]
[351928919,1738847446981,-500.0,0.00013835,2]
[351928921,1738847446992,-3756.01,0.00013835,2]
[351928923,1738847447002,-1417.23,0.00013835,2]
[351928925,1738847447011,-500.0,0.00013835,2]
[351928927,1738847447020,-2575.8,0.00013835,2]
[351928929,1738847447030,-500.0,0.00013835,2]
[351928931,1738847447039,-500.0,0.00013835,2]
[351928933,1738847447048,-4733.79,0.00013835,2]
[351928935,1738847447058,-500.0,0.00013835,2]
[351928937,1738847447068,-1573.5,0.00013835,2]
[351928939,1738847447078,-17634.76,0.00013835,2]
[351928941,1738847447088,-500.0,0.00013835,2]
[351928943,1738847447098,-2517.42,0.00013835,2]
[351928945,1738847447108,-500.0,0.00013835,2]
[351928947,1738847447117,-1416.57,0.00013835,2]
[351928949,1738847447127,-2228.34,0.00013835,2]
[351928951,1738847447137,-500.0,0.00013835,2]
[351928953,1738847447147,-814.56,0.00013835,2]
[351928955,1738847447156,-500.0,0.00013835,2]
[351928957,1738847447166,-500.0,0.00013835,2]
[351928959,1738847447176,-449.72302827,0.00013835,2]
[351928961,1738847447185,-1632.46,0.00013835,2]
[351928963,1738847447195,-500.0,0.00013835,2]
[351928965,1738847447208,-955.29,0.00013835,2]
[351928967,1738847447219,-500.0,0.00013835,2]
[351928969,1738847447232,-3761.95,0.00013835,2]
[351928971,1738847447242,-915.88,0.00013835,2]
[351928973,1738847447253,-500.0,0.00013835,2]
[351928976,1738847447263,-500.61,0.00013835,2]
[351928978,1738847447273,-1831.57,0.00013835,2]
[351928980,1738847447283,-500.0,0.00013835,2]
[351928982,1738847447292,-500.0,0.00013835,2]
[351928983,1738847447301,-500.0,0.00013835,2]
[351928986,1738847447311,-2483.84,0.00013835,2]
[351928988,1738847447321,-500.0,0.00013835,2]
[351928990,1738847447330,-1508.63,0.00013835,2]
[351928992,1738847447340,-500.0,0.00013835,2]
[351928994,1738847447350,-9670.28,0.00013835,2]
[351928996,1738847447360,-1857.51,0.00013835,2]
[351928998,1738847447370,-500.0,0.00013835,2]
[351929000,1738847447379,-565.77,0.00013835,2]
[351929002,1738847447389,-3431.74,0.00013835,2]
[351929004,1738847447398,-500.0,0.00013835,2]
[351929006,1738847447411,-500.0,0.00013835,2]
[351929008,1738847447421,-734.55,0.00013835,2]
[351929010,1738847447431,-500.0,0.00013835,2]
[351929012,1738847447442,-500.0,0.00013835,2]
[351929014,1738847447452,-624.18,0.00013835,2]
[351929016,1738847447462,-500.0,0.00013835,2]
[351929018,1738847447472,-500.0,0.00013835,2]
[351929020,1738847447483,-500.0,0.00013835,2]
[351929022,1738847447493,-500.0,0.00013835,2]
[351929024,1738847447502,-500.0,0.00013835,2]
[351929026,1738847447512,-500.0,0.00013835,2]
[351929028,1738847447523,-500.0,0.00013835,2]
[351929030,1738847447534,-500.0,0.00013835,2]
[351929032,1738847447544,-2160.78,0.00013835,2]
[351929035,1738847447555,-500.0,0.00013835,2]
[351929037,1738847447565,-500.0,0.00013835,2]
[351929039,1738847447575,-875.81,0.00013835,2]
[351929041,1738847447585,-500.0,0.00013835,2]
[351929043,1738847447594,-3474.32,0.00013835,2]
[351929045,1738847447604,-500.0,0.00013835,2]
[351929047,1738847447614,-500.0,0.00013835,2]
[351929049,1738847447624,-500.0,0.00013835,2]
[351929051,1738847447633,-500.0,0.00013835,2]
[351929053,1738847447643,-500.0,0.00013835,2]
[351929055,1738847447653,-1410.06,0.00013835,2]
[351929057,1738847447663,-500.0,0.00013835,2]
[351929059,1738847447673,-500.0,0.00013835,2]
[351929061,1738847447687,-1215.7,0.00013835,2]
[351929063,1738847447707,-4183.41,0.00013835,2]
[351929065,1738847447717,-637.05,0.00013835,2]
[351929067,1738847447728,-1523.6,0.00013835,2]
[351929069,1738847447739,-500.0,0.00013835,2]
[351929071,1738847447749,-500.0,0.00013835,2]
[351929073,1738847447760,-153.0,0.0001389,2]
[351929075,1738847447770,-306.4425861,0.0001389,2]
[351929077,1738847447780,-215.7447597,0.0001389,2]
[351929079,1738847447791,-153.0,0.0001389,2]
[351929081,1738847447801,-154.5349496,0.0001389,2]
[351929083,1738847447811,-153.0,0.0001389,2]
[351929085,1738847447821,-153.0,0.0001389,2]
[351929087,1738847447832,-154.5349496,0.0001389,2]
[351929089,1738847447842,-215.7447597,0.0001389,2]
[351929091,1738847447852,-213.16247815,0.000139,2]
[351929093,1738847447862,-1000.0,0.000139,2]
[351929095,1738847447874,-420.0,0.00013931,2]
[351929097,1738847447884,-902.16,0.00013972,2]
[351929099,1738847447894,-500.0,0.00013972,2]
[351929101,1738847447906,-500.0,0.00013972,2]
[351929103,1738847447918,-500.0,0.00013972,2]
[351929105,1738847447930,-500.0,0.00013972,2]
[351929107,1738847447942,-500.0,0.00013972,2]
[351929109,1738847447953,-500.0,0.00013972,2]
[351929111,1738847447963,-686.83,0.00013972,2]
[351929113,1738847447974,-500.0,0.00013972,2]
[351929115,1738847447985,-500.0,0.00013972,2]
[351929117,1738847447996,-500.0,0.00013972,2]
[351929119,1738847448006,-500.0,0.00013972,2]
[351929121,1738847448017,-500.0,0.00013972,2]
[351929123,1738847448028,-830.24,0.00013972,2]
[351929125,1738847448039,-500.0,0.00013972,2]
[351929127,1738847448050,-500.0,0.00013972,2]
[351929129,1738847448061,-500.0,0.00013972,2]
[351929131,1738847448072,-500.0,0.00013972,2]
[351929133,1738847448083,-500.0,0.00013972,2]
[351929135,1738847448094,-500.0,0.00013972,2]
[351929137,1738847448105,-500.0,0.00013972,2]
[351929139,1738847448116,-500.0,0.00013972,2]
[351929141,1738847448127,-500.0,0.00013972,2]
[351929143,1738847448138,-663.22,0.00013972,2]
[351929145,1738847448149,-526.45,0.00013972,2]
[351929147,1738847448160,-500.0,0.00013972,2]
[351929149,1738847448171,-595.88,0.00013972,2]
[351929151,1738847448182,-899.58,0.00013972,2]
[351929153,1738847448192,-842.24,0.00013972,2]
[351929155,1738847448202,-500.0,0.00013972,2]
[351929157,1738847448213,-500.0,0.00013972,2]
[351929159,1738847448225,-500.0,0.00013972,2]
[351929161,1738847448236,-500.0,0.00013972,2]
[351929163,1738847448247,-500.0,0.00013972,2]
[351929165,1738847448258,-151.0,0.00013972,2]
[351929167,1738847448269,-500.0,0.00013972,2]
[351929169,1738847448279,-500.0,0.00013972,2]
[351929171,1738847448291,-500.0,0.00013972,2]
[351929173,1738847448302,-500.0,0.00013972,2]
[351929176,1738847448314,-500.0,0.00013972,2]
[351929177,1738847448324,-790.78,0.00013972,2]
[351929179,1738847448335,-500.0,0.00013972,2]
[351929181,1738847448346,-500.0,0.00013972,2]
[351929183,1738847448357,-500.0,0.00013972,2]
[351929185,1738847448368,-500.0,0.00013972,2]
[351929187,1738847448379,-500.0,0.00013972,2]
[351929190,1738847448390,-500.0,0.00013972,2]
[351929192,1738847448401,-500.0,0.00013972,2]
[351929194,1738847448412,-500.0,0.00013972,2]
[351929196,1738847448423,-500.0,0.00013972,2]
[351929198,1738847448434,-500.0,0.00013972,2]
[351929200,1738847448445,-500.0,0.00013972,2]
[351929202,1738847448455,-500.0,0.00013972,2]
[351929203,1738847448466,-561.47,0.00013972,2]
[351929206,1738847448476,-306.36551695,0.00013972,2]
[351929208,1738847448487,-1663.17,0.00013972,2]
[351929210,1738847448498,-500.0,0.00013972,2]
[351929212,1738847448508,-500.0,0.00013972,2]
[351929214,1738847448519,-500.0,0.00013972,2]
[351929216,1738847448530,-500.0,0.00013972,2]
[351929218,1738847448540,-500.0,0.00013972,2]
[351929220,1738847448550,-500.0,0.00013972,2]
[351929222,1738847448569,-503.33115944,0.00013972,2]
[351929225,1738847448580,-500.0,0.00013972,2]
[351929227,1738847448591,-1779.31,0.00013972,2]
[351929229,1738847448602,-500.0,0.00013972,2]
[351929231,1738847448612,-500.0,0.00013972,2]
[351929233,1738847448622,-500.0,0.00013972,2]
[351929235,1738847448633,-1188.13,0.00013972,2]
[351929237,1738847448643,-500.0,0.00013972,2]
[351929239,1738847448654,-500.0,0.00013972,2]
[351929241,1738847448667,-500.0,0.00013972,2]
[351929243,1738847448677,-587.09,0.00013972,2]
[351929245,1738847448687,-500.0,0.00013972,2]
[351929247,1738847448698,-500.0,0.00013972,2]
[351929249,1738847448709,-500.0,0.00013972,2]
[351929251,1738847448721,-500.0,0.00013972,2]
[351929254,1738847448733,-500.0,0.00013972,2]
[351929256,1738847448744,-151.0,0.00013972,2]
[351929258,1738847448756,-500.0,0.00013972,2]
[351929260,1738847448766,-500.0,0.00013972,2]
[351929262,1738847448777,-151.0,0.00013972,2]
[351929264,1738847448787,-438.19380035,0.00013972,2]
[351929266,1738847448799,-500.0,0.00013972,2]
[351929268,1738847448810,-500.0,0.00013972,2]
[351929270,1738847448821,-500.0,0.00013972,2]
[351929272,1738847448832,-500.0,0.00013972,2]
[351929274,1738847448843,-500.0,0.00013972,2]
[351929276,1738847448854,-641.27,0.00013972,2]
[351929278,1738847448865,-500.0,0.00013972,2]
[351929280,1738847448875,-500.0,0.00013972,2]
[351929282,1738847448887,-500.0,0.00013972,2]
[351929285,1738847448903,-151.0,0.00013972,2]
[351929287,1738847448914,-500.0,0.00013972,2]
[351929289,1738847448925,-151.0,0.00013972,2]
[351929291,1738847448936,-500.0,0.00013972,2]
[351929293,1738847448948,-500.0,0.00013972,2]
[351929295,1738847448960,-151.0,0.00013972,2]
[351929297,1738847448971,-1424.39,0.00013972,2]
[351929299,1738847448985,-500.0,0.00013972,2]
[351929301,1738847448998,-500.0,0.00013972,2]
[351929303,1738847449010,-500.0,0.00013972,2]
[351929306,1738847449021,-151.0,0.00013972,2]
[351929308,1738847449032,-500.0,0.00013972,2]
[351929310,1738847449043,-151.0,0.00013972,2]
[351929312,1738847449054,-1234.8,0.00013972,2]
[351929314,1738847449064,-151.0,0.00013972,2]
[351929316,1738847449077,-500.0,0.00013972,2]
[351929318,1738847449089,-151.0,0.00013972,2]
[351929320,1738847449100,-500.0,0.00013972,2]
[351929322,1738847449111,-500.0,0.00013972,2]
[351929324,1738847449122,-772.63,0.00013972,2]
[351929326,1738847449133,-550.24,0.00013972,2]
[351929328,1738847449143,-500.0,0.00013972,2]
[351929330,1738847449154,-500.0,0.00013972,2]
[351929332,1738847449164,-1541.31,0.00013972,2]
[351929334,1738847449175,-500.0,0.00013972,2]
[351929336,1738847449186,-151.0,0.00013972,2]
[351929338,1738847449197,-778.65,0.00013972,2]
[351929340,1738847449208,-500.0,0.00013972,2]
[351929342,1738847449218,-965.76,0.00013972,2]
[351929344,1738847449230,-500.0,0.00013972,2]
[351929346,1738847449241,-1806.99,0.00013972,2]
[351929348,1738847449252,-500.0,0.00013972,2]
[351929350,1738847449262,-277.82859,0.00013972,2]
[351929352,1738847449274,-277.82859,0.00013972,2]
[351929354,1738847449284,-501.84516119,0.00013972,2]
[351929357,1738847449294,-932.19,0.00013972,2]
[351929359,1738847449304,-151.0,0.00013972,2]
[351929361,1738847449314,-817.86,0.00013972,2]
[351929362,1738847449324,-520.68859544,0.00013972,2]
[351929365,1738847449335,-153.484543,0.00013972,2]
[351929367,1738847449345,-151.0,0.00013972,2]
[351929369,1738847449355,-765.11,0.00013972,2]
[351929371,1738847449366,-151.0,0.00013972,2]
[351929373,1738847449376,-151.74422,0.00013972,2]
[351929375,1738847449386,-151.0,0.00013972,2]
[351929377,1738847449397,-697.84,0.00013972,2]
[351929379,1738847449408,-4103.99,0.00013972,2]
[351929381,1738847449418,-500.0,0.00013972,2]
[351929383,1738847449428,-500.0,0.00013972,2]
[351929385,1738847449438,-500.0,0.00013972,2]
[351929387,1738847449448,-500.0,0.00013972,2]
[351929389,1738847449458,-620.59,0.00013972,2]
[351929391,1738847449467,-2092.73,0.00013972,2]
[351929393,1738847449478,-500.0,0.00013972,2]
[351929395,1738847449488,-500.0,0.00013972,2]
[351929397,1738847449498,-500.0,0.00013972,2]
[351929399,1738847449510,-500.0,0.00013972,2]
[351929401,1738847449520,-500.0,0.00013972,2]
[351929403,1738847449530,-1097.83,0.00013972,2]
[351929405,1738847449540,-500.0,0.00013972,2]
[351929407,1738847449550,-500.0,0.00013972,2]
[351929409,1738847449560,-500.0,0.00013972,2]
[351929411,1738847449570,-167.889512,0.00013972,2]
[351929413,1738847449580,-1248.19,0.00013972,2]
[351929415,1738847449590,-629.48,0.00013972,2]
[351929417,1738847449599,-1427.22,0.00013972,2]
[351929419,1738847449609,-753.82,0.00013972,2]
[351929421,1738847449619,-15115.34,0.00013972,2]
[351929423,1738847449629,-500.0,0.00013972,2]
[351929426,1738847449640,-500.0,0.00013972,2]
[351929428,1738847449650,-3380.09,0.00013972,2]
[351929430,1738847449660,-500.0,0.00013972,2]
[351929432,1738847449669,-1329.82,0.00013972,2]
[351929434,1738847449680,-254.533764,0.00013972,2]
[351929436,1738847449690,-500.0,0.00013972,2]
[351929438,1738847449700,-304.28702336,0.00013972,2]
[351929440,1738847449709,-7819.04,0.00013972,2]
[351929442,1738847449719,-1129.74,0.00013972,2]
[351929444,1738847449731,-575.99855087,0.00013972,2]
[351929446,1738847449742,-173.754967,0.00013972,2]
[351929448,1738847449752,-173.754967,0.00013972,2]
[351929450,1738847449762,-500.0,0.00013972,2]
[351929452,1738847449772,-173.754967,0.00013972,2]
[351929454,1738847449783,-173.754967,0.00013972,2]
[351929456,1738847449793,-500.0,0.00013972,2]
[351929458,1738847449802,-500.0,0.00013972,2]
[351929460,1738847449812,-151.0,0.00013972,2]
[351929462,1738847449822,-151.0,0.00013972,2]
[351929464,1738847449832,-500.0,0.00013972,2]
[351929466,1738847449842,-500.0,0.00013972,2]
[351929468,1738847449851,-46237.83,0.00013972,2]
[351929470,1738847449862,-500.0,0.00013972,2]
[351929472,1738847449872,-151.0,0.00013972,2]
[351929474,1738847449882,-151.0,0.00013972,2]
[351929476,1738847449893,-500.0,0.00013972,2]
[351929478,1738847449905,-500.0,0.00013972,2]
[351929480,1738847449918,-500.0,0.00013972,2]
[351929482,1738847449928,-1004.64,0.00013972,2]
[351929484,1738847449939,-500.0,0.00013972,2]
[351929486,1738847449948,-794.74,0.00013972,2]
[351929488,1738847449958,-507.76093265,0.00013972,2]
[351929490,1738847449968,-500.0,0.00013972,2]
[351929492,1738847449980,-1201.17,0.00013972,2]
[351929494,1738847449989,-500.0,0.00013972,2]
[351929496,1738847449999,-500.0,0.00013972,2]
[351929498,1738847450009,-3756.01,0.00013972,2]
[351929500,1738847450018,-1417.23,0.00013972,2]
[351929502,1738847450028,-208.65336372,0.00013972,2]
[351929504,1738847450038,-2575.8,0.00013972,2]
[351929506,1738847450048,-500.0,0.00013972,2]
[351929508,1738847450058,-500.0,0.00013972,2]
[351929510,1738847450068,-151.0,0.00013972,2]
[351929512,1738847450078,-4733.79,0.00013972,2]
[351929514,1738847450088,-151.0,0.00013972,2]
[351929516,1738847450098,-500.0,0.00013972,2]
[351929518,1738847450108,-151.0,0.00013972,2]
[351929520,1738847450118,-151.0,0.00013972,2]
[351929522,1738847450128,-1573.5,0.00013972,2]
[351929524,1738847450139,-191.392399,0.00013972,2]
[351929526,1738847450149,-17634.76,0.00013972,2]
[351929528,1738847450159,-500.0,0.00013972,2]
[351929530,1738847450169,-2517.42,0.00013972,2]
[351929531,1738847450180,-151.0,0.00013972,2]
[351929532,1738847450190,-206.959826,0.00013972,2]
[351929533,1738847450199,-500.0,0.00013972,2]
[351929534,1738847450209,-1416.57,0.00013972,2]
[351929535,1738847450218,-2228.34,0.00013972,2]
[351929536,1738847450231,-500.0,0.00013972,2]
[351929537,1738847450240,-814.56,0.00013972,2]
[351929538,1738847450249,-500.0,0.00013972,2]
[351929539,1738847450259,-1632.46,0.00013972,2]
[351929540,1738847450268,-151.0,0.00013972,2]
[351929541,1738847450278,-151.0,0.00013972,2]
[351929542,1738847450287,-492.9554816,0.00013972,2]
[351929543,1738847450297,-955.29,0.00013972,2]
[351929544,1738847450307,-500.0,0.00013972,2]
[351929545,1738847450316,-3761.95,0.00013972,2]
[351929546,1738847450326,-915.88,0.00013972,2]
[351929547,1738847450336,-500.0,0.00013972,2]
[351929549,1738847450346,-151.0,0.00013972,2]
[351929551,1738847450356,-500.61,0.00013972,2]
[351929553,1738847450366,-1831.57,0.00013972,2]
[351929555,1738847450376,-500.0,0.00013972,2]
[351929557,1738847450387,-151.0,0.00013972,2]
[351929559,1738847450398,-151.0,0.00013972,2]
[351929561,1738847450408,-268.272087,0.00013972,2]
[351929563,1738847450418,-268.272087,0.00013972,2]
[351929565,1738847450428,-500.0,0.00013972,2]
[351929568,1738847450440,-268.272087,0.00013972,2]
[351929587,1738847450606,-268.272087,0.00013972,2]
[351929589,1738847450615,-2483.84,0.00013972,2]
[351929591,1738847450625,-1508.63,0.00013972,2]
[351929593,1738847450635,-151.0,0.00013972,2]
[351929595,1738847450645,-151.0,0.00013972,2]
[351929597,1738847450654,-500.0,0.00013972,2]
[351929599,1738847450663,-9670.28,0.00013972,2]
[351929601,1738847450673,-1857.51,0.00013972,2]
[351929603,1738847450682,-500.0,0.00013972,2]
[351929605,1738847450692,-3431.74,0.00013972,2]
[351929607,1738847450702,-500.0,0.00013972,2]
[351929609,1738847450711,-572.16,0.00013972,2]
[351929611,1738847450720,-734.55,0.00013972,2]
[351929613,1738847450731,-500.0,0.00013972,2]
[351929615,1738847450740,-500.0,0.00013972,2]
[351929617,1738847450750,-624.18,0.00013972,2]
[351929619,1738847450760,-500.0,0.00013972,2]
[351929621,1738847450769,-1045.222623,0.00013972,2]
[351929623,1738847450779,-1045.222623,0.00013972,2]
[351929625,1738847450788,-500.0,0.00013972,2]
[351929627,1738847450797,-1045.222623,0.00013972,2]
[351929629,1738847450807,-1045.222623,0.00013972,2]
[351929631,1738847450816,-517.54206974,0.00013972,2]
[351929633,1738847450825,-500.0,0.00013972,2]
[351929635,1738847450835,-500.0,0.00013972,2]
[351929637,1738847450845,-587.49,0.00013972,2]
[351929639,1738847450854,-500.0,0.00013972,2]
[351929641,1738847450863,-2160.78,0.00013972,2]
[351929643,1738847450873,-151.0,0.00013972,2]
[351929645,1738847450883,-500.0,0.00013972,2]
[351929647,1738847450896,-875.81,0.00013972,2]
[351929649,1738847450906,-500.0,0.00013972,2]
[351929651,1738847450916,-3474.32,0.00013972,2]
[351929653,1738847450926,-500.0,0.00013972,2]
[351929655,1738847450935,-500.0,0.00013972,2]
[351929657,1738847450945,-500.0,0.00013972,2]
[351929659,1738847450954,-1410.06,0.00013972,2]
[351929661,1738847450964,-500.0,0.00013972,2]
[351929663,1738847450975,-1215.7,0.00013972,2]
[351929665,1738847450984,-4183.41,0.00013972,2]
[351929667,1738847450995,-637.05,0.00013972,2]
[351929669,1738847451004,-1523.6,0.00013972,2]
[351929671,1738847451014,-500.0,0.00013972,2]
[351929673,1738847451023,-500.0,0.00013972,2]
[351929675,1738847451032,-400.0,0.00013973,2]
[351929677,1738847451041,-1000.0,0.0001398,2]
[351929679,1738847451051,-4686.0,0.00014,2]
[351929681,1738847451061,-2000.0,0.00014,2]
[351929683,1738847451070,-151.0,0.00014,2]
[351929685,1738847451080,-537.40417108,0.00014008,2]
[351929687,1738847451089,-211.70900227,0.00014009,2]
[351929689,1738847451098,-2072.28527919,0.00014009,2]
[351929691,1738847451108,-2000.0,0.000141,2]
[351929693,1738847451119,-151.0,0.000141,2]
[351929695,1738847451128,-151.0,0.000141,2]
[351929697,1738847451138,-2085.30889,0.00014103,2]
[351929699,1738847451147,-223.86837158,0.00014108,2]
[351929701,1738847451157,-100813.74174352,0.00014108,5]
[351929703,1738847451167,-124016.42335288,0.00014109,5]
[351929723,1738847451348,-1733.877936,0.00014109,5]
[351929725,1738847451360,-110644.27638331,0.00014109,5]
[351929728,1738847451370,-902.16,0.00014109,2]
[351929730,1738847451379,-458.35517356,0.00014109,2]
[351929731,1738847451389,-500.0,0.00014109,2]
[351929734,1738847451398,-500.0,0.00014109,2]
[351929736,1738847451407,-686.83,0.00014109,2]
[351929738,1738847451417,-151.0,0.00014109,2]
[351929740,1738847451426,-500.0,0.00014109,2]
[351929741,1738847451435,-500.0,0.00014109,2]
[351929744,1738847451446,-379.607,0.00014109,2]
[351929746,1738847451455,-413.07089101,0.00014109,2]
[351929748,1738847451467,-86.92910899,0.00014109,2]
[351929750,1738847451477,-709.44913836,0.00014109,2]
[351929752,1738847451489,-120.79086164,0.00014109,2]
[351929754,1738847451498,-500.0,0.00014109,2]
[351929756,1738847451508,-179.06949076,0.00014109,2]
[351929759,1738847451520,-320.93050924,0.00014109,2]
[351929761,1738847451530,-130.20816276,0.00014109,2]
[351929763,1738847451542,-406.10183724,0.00014109,2]
[351929765,1738847451552,-500.0,0.00014109,2]
[351929767,1738847451561,-172.00611776,0.00014109,2]
[351929769,1738847451572,-327.99388224,0.00014109,2]
[351929771,1738847451582,-500.0,0.00014109,2]
[351929773,1738847451591,-500.0,0.00014109,2]
[351929775,1738847451600,-500.0,0.00014109,2]
[351929777,1738847451610,-500.0,0.00014109,2]
[351929779,1738847451619,-663.22,0.00014109,2]
[351929781,1738847451629,-177.55751488,0.00014109,2]
[351929783,1738847451638,-899.58,0.00014109,2]
[351929785,1738847451647,-842.24,0.00014109,2]
[351929787,1738847451657,-509.0015204,0.00014109,2]
[351929789,1738847451666,-500.0,0.00014109,2]
[351929791,1738847451675,-500.0,0.00014109,2]
[351929793,1738847451685,-500.0,0.00014109,2]
[351929795,1738847451694,-500.0,0.00014109,2]
[351929798,1738847451704,-151.0,0.00014109,2]
[351929800,1738847451713,-479.19397539,0.00014109,2]
[351929802,1738847451723,-500.0,0.00014109,2]
[351929804,1738847451733,-500.0,0.00014109,2]
[351929806,1738847451742,-790.78,0.00014109,2]
[351929808,1738847451751,-500.0,0.00014109,2]
[351929809,1738847451761,-380.9169895,0.00014109,2]
[351929811,1738847451770,-500.0,0.00014109,2]
[351929814,1738847451779,-500.0,0.00014109,2]
[351929816,1738847451789,-561.47,0.00014109,2]
[351929817,1738847451798,-1663.17,0.00014109,2]
[351929819,1738847451808,-500.0,0.00014109,2]
[351929822,1738847451818,-337.45849636,0.00014109,2]
[351929824,1738847451827,-500.0,0.00014109,2]
[351929826,1738847451836,-500.0,0.00014109,2]
[351929828,1738847451846,-1779.31,0.00014109,2]
[351929830,1738847451855,-403.59990338,0.00014109,2]
[351929832,1738847451864,-1188.13,0.00014109,2]
[351929834,1738847451874,-500.0,0.00014109,2]
[351929836,1738847451884,-500.0,0.00014109,2]
[351929838,1738847451896,-500.0,0.00014109,2]
[351929840,1738847451907,-452.5004664,0.00014109,2]
[351929842,1738847451917,-151.0,0.00014109,2]
[351929844,1738847451927,-500.0,0.00014109,2]
[351929846,1738847451937,-500.0,0.00014109,2]
[351929848,1738847451946,-641.27,0.00014109,2]
[351929850,1738847451956,-241.4,0.00014109,2]
[351929852,1738847451966,-500.0,0.00014109,2]
[351929854,1738847451976,-151.0,0.00014109,2]
[351929856,1738847451988,-1424.39,0.00014109,2]
[351929858,1738847451998,-500.0,0.00014109,2]
[351929860,1738847452007,-500.0,0.00014109,2]
[351929862,1738847452016,-151.0,0.00014109,2]
[351929864,1738847452027,-381.46,0.00014109,2]
[351929866,1738847452036,-151.0,0.00014109,2]
[351929868,1738847452046,-1234.8,0.00014109,2]
[351929870,1738847452055,-151.0,0.00014109,2]
[351929872,1738847452064,-500.0,0.00014109,2]
[351929874,1738847452075,-151.0,0.00014109,2]
[351929876,1738847452084,-500.0,0.00014109,2]
[351929878,1738847452094,-500.0,0.00014109,2]
[351929880,1738847452103,-772.63,0.00014109,2]
[351929882,1738847452113,-500.0,0.00014109,2]
[351929884,1738847452123,-500.0,0.00014109,2]
[351929886,1738847452133,-1541.31,0.00014109,2]
[351929888,1738847452142,-500.0,0.00014109,2]
[351929890,1738847452151,-151.0,0.00014109,2]
[351929892,1738847452161,-236.058685,0.00014109,2]
[351929894,1738847452171,-778.65,0.00014109,2]
[351929896,1738847452180,-965.76,0.00014109,2]
[351929898,1738847452190,-196.99,0.00014109,2]
[351929900,1738847452200,-1806.99,0.00014109,2]
[351929902,1738847452209,-277.82859,0.00014109,2]
[351929904,1738847452219,-277.82859,0.00014109,2]
[351929906,1738847452228,-277.82859,0.00014109,2]
[351929908,1738847452238,-277.82859,0.00014109,2]
[351929910,1738847452248,-932.19,0.00014109,2]
[351929912,1738847452257,-151.0,0.00014109,2]
[351929914,1738847452267,-151.0,0.00014109,2]
[351929916,1738847452276,-817.86,0.00014109,2]
[351929918,1738847452285,-151.0,0.00014109,2]
[351929921,1738847452295,-151.0,0.00014109,2]
[351929923,1738847452305,-765.11,0.00014109,2]
[351929925,1738847452314,-151.0,0.00014109,2]
[351929927,1738847452323,-151.0,0.00014109,2]
[351929929,1738847452333,-697.84,0.00014109,2]
[351929931,1738847452342,-4103.99,0.00014109,2]
[351929933,1738847452351,-500.0,0.00014109,2]
[351929935,1738847452360,-500.0,0.00014109,2]
[351929937,1738847452370,-620.59,0.00014109,2]
[351929938,1738847452379,-2092.73,0.00014109,2]